Cogmind - Beta 14 @@@ ROGUE MODE // 2024.09.07 @ 16:12:30 Player: MOPO3 Result: Self-destructed Performance ------------- Evolutions (1) 500 Regions Visited (3) 600 Robots Destroyed (6) 30 Value Destroyed (55) 55 Prototype IDs (0) 0 Alien Tech Used (0) 0 Bonus (200) 200 TOTAL SCORE: 1385 Bonus ------- Pacifist 200 Cogmind --------- Core Integrity 251/400 Matter 246/300 Energy 100/100 System Corruption 0% Temperature Cool (0) Movement Core (50) Location -9/Mines Parts ------- > --- POWER (1) -------- (None) > --- PROPULSION (2) --- Aluminum Leg > --- UTILITY (4) ------ Seismic Detector > --- WEAPON (2) ------- (None) > --- INVENTORY (5) ---- Aluminum Leg Small Storage Unit Flail Peak State ------------ > --- POWER ------------ (None) > --- PROPULSION ------- Light Treads Light Treads > --- UTILITY ---------- (None) > --- WEAPON ----------- Grenade Launcher Flail > --- INVENTORY -------- Aluminum Leg Aluminum Leg Small Storage Unit [Rating: 5] Favorites ----------- Power None Propulsion Light Treads Treads Light Treads Leg Aluminum Leg Flight Unit Flight Unit Utility Seismic Detector Device Seismic Detector Storage Small Storage Unit Weapon Grenade Launcher Launcher Grenade Launcher Impact Weapon Flail Build | -11 -10 -9 -9 ------- Run | Yrd Mat Mat Min Slots Evolved 2 | . . 2 . Power . | . . . . Propulsion . | . . . . Utility 2 | . . 2 . Weapon . | . . . . Parts Attached 11 | 2 . 6 3 Power . | . . . . Engine . | . . . . Core . | . . . . Reactor . | . . . . Propulsion 6 | 2 . 3 1 Treads 4 | 2 . 2 . Leg 1 | . . . 1 Wheel . | . . . . Hover . | . . . . Flight 1 | . . 1 . Utility 2 | . . 1 1 Device 1 | . . . 1 Storage 1 | . . 1 . Processor . | . . . . Hackware . | . . . . Protection . | . . . . Artifact . | . . . . Weapon 3 | . . 2 1 Energy Gun . | . . . . Energy Cannon . | . . . . Ballistic Gun . | . . . . Ballistic Cannon . | . . . . Launcher 2 | . . 1 1 Special Weapon . | . . . . Impact Weapon 1 | . . 1 . Slashing Weapon . | . . . . Piercing Weapon . | . . . . Special Melee Weapon . | . . . . Unidentified Prototypes . | . . . . Parts Lost 3 | . . 1 2 Power . | . . . . Propulsion 2 | . . 1 1 Utility . | . . . . Weapon 1 | . . . 1 Highest Loss Streak 2 | . . 1 2 To Critical Strikes . | . . . . Average Slot Usage (%) 27 | . 28 29 24 Treads 18 | . 28 21 1 Leg 2 | . . . 11 Device 1 | . . . 7 Launcher 3 | . . 4 5 Impact Weapon 1 | . . 3 . Peak Build Rating 5 | 2 2 5 3 Average Rating 2 | 1 2 2 2 On Entrance 1 | . 2 2 1 Naked Turns . | . . . . Heaviest Build 5 | . . 5 4 Greatest Support 40 | 40 3 40 3 Greatest Overweight (x) 1 | . . . 1 Average Overweight (x) . | . . . . Largest Inventory Capacity 8 | 5 5 8 5 Average Capacity 5 | 5 5 5 5 Most Carried 6 | 2 5 6 4 Average Carried 3 | . 4 4 3 Final Capacity 5 | 5 5 5 5 Final Carried 5 | 2 5 5 3 Class Distribution -------------------- 100% | Mutant Dominant Class ---------------- Mutant | -10/Materials Mutant | -9/Materials Mutant | -9/Mines Resources | -11 -10 -9 -9 ----------- Run | Yrd Mat Mat Min Matter Collected 271 | 89 126 56 . Remotely . | . . . . Salvage Created 62 | . . 62 . Parts 6 | . . 6 . Haulers Intercepted . | . . . . Recyclers Shooed . | . . . . Parts Field Recycled . | . . . . Retrieved Matter . | . . . . Parts Self-Destructed . | . . . . Prevented . | . . . . Kills | -11 -10 -9 -9 ------- Run | Yrd Mat Mat Min Combat Hostiles Destroyed 5 | . . 5 . Melee 2 | . . 2 . AOE 3 | . . 3 . Classes Destroyed 2 | . . 2 . Builder 1 | . . 1 . Swarmer 5 | . . 5 . Best Kill Streak 5 | . . 5 . Combat Bots Only 5 | . . 5 . Max Kills in Single Turn 1 | . . 1 . Gunslinging . | . . . . Exploded 1 | . . 1 . Melee 1 | . . 1 . Uniques/NPCs Destroyed . | . . . . Combat | -11 -10 -9 -9 -------- Run | Yrd Mat Mat Min Hostile Shots Fired 73 | . . 60 13 Missed 20 | . . 17 3 Damage Taken 558 | . . 416 142 Core 149 | . . 109 40 Absorbed by Shields . | . . . . Core Remaining (%) 100 | 100 100 . . Volleys Fired 3 | . . 3 . Largest 1 | . . 1 . Hottest 30 | . . 30 . Shots Fired 3 | . . 3 . Gun . | . . . . Cannon . | . . . . Launcher 3 | . . 3 . Special . | . . . . Kinetic . | . . . . Thermal . | . . . . Explosive 3 | . . 3 . Electromagnetic . | . . . . Robot Hit Streak . | . . . . Robot Miss Streak 1 | . . 1 . Penetration Max . | . . . . Secondary Targets . | . . . . Shots Hit Robots 5 | . . 5 . Core Hits 4 | . . 4 . Critical Kills . | . . . . Critical Parts Destroyed 1 | . . 1 . Critical Strikes 1 | . . 1 . Smash 1 | . . 1 . Melee Attacks 8 | . . 8 . Impact 8 | . . 8 . Slashing . | . . . . Piercing . | . . . . Sneak Attacks 1 | . . 1 . Combat Hostiles . | . . . . Follow-up Attacks . | . . . . Damage Inflicted 348 | . . 348 . Guns . | . . . . Cannons . | . . . . Explosions 172 | . . 172 . Melee 176 | . . 176 . Ramming . | . . . . Kinetic . | . . . . Thermal . | . . . . Explosive 172 | . . 172 . Electromagnetic . | . . . . Impact 176 | . . 176 . Slashing . | . . . . Piercing . | . . . . Highest Corruption 5 | . 5 . . Average Corruption 4 | . 4 . . Corruption Purged . | . . . . Corruption Blocked . | . . . . Effects 2 | . 2 . . Heat Flow Errors 1 | . 1 . . Energy Discharges 1 | . 1 . . Overload Shots . | . . . . Overflow Damage 77 | . . 77 . Projectiles . | . . . . Explosions 10 | . . 10 . Melee 67 | . . 67 . Knockbacks . | . . . . Impact . | . . . . Kinetic . | . . . . Secondary . | . . . . Self-Inflicted Damage 22 | . . 22 . Shots 1 | . . 1 . Rammed . | . . . . Targets Rammed . | . . . . Kicked . | . . . . Crushed . | . . . . Highest Temperature 168 | . 168 . . Average Temperature 93 | . 93 . . Received Heat Transfer 164 | . . 96 68 Siege Activations . | . . . . Robots Corrupted 1 | . . 1 . Combat Hostiles . | . . . . Parts Fried . | . . . . Impact Corruptions 5 | . . 5 . Robots Melted . | . . . . Combat Hostiles . | . . . . Parts Melted . | . . . . Heat Transferred . | . . . . Parts Sabotaged . | . . . . Parts Stolen . | . . . . Parts Stripped . | . . . . Power Chain Reactions . | . . . . Alert | -11 -10 -9 -9 ------- Run | Yrd Mat Mat Min Peak Influence 153 | . 42 153 125 Initial 55 | . . 17 55 Average 59 | . 28 79 74 Maximum Alert Level . | . . . . Low Security (%) 100 | 100 100 100 100 Level 1 . | . . . . Level 2 . | . . . . Level 3 . | . . . . Level 4 . | . . . . Level 5 . | . . . . High Security . | . . . . Max Security . | . . . . Squads Dispatched . | . . . . Investigation . | . . . . Extermination . | . . . . Reinforcement . | . . . . Assault . | . . . . Garrison . | . . . . Intercept . | . . . . Searches Triggered . | . . . . Construction Impeded . | . . . . Haulers Reinforced . | . . . . Active Scanning Responses . | . . . . Cargo Convoy Interrupts . | . . . . Stealth | -11 -10 -9 -9 --------- Run | Yrd Mat Mat Min Distress Signals 2 | . . 2 . Communications Jammed . | . . . . Distress Signals . | . . . . Times Spotted 34 | . . 15 19 Peak Tracking Total 13 | . . 8 13 Tactical Retreats 3 | . . . 3 Traps | -11 -10 -9 -9 ------- Run | Yrd Mat Mat Min Traps Triggered 4 | . 4 . . Indirectly . | . . . . Trap Hack Attempts . | . . . . Triggered . | . . . . Disarmed . | . . . . Reprogrammed . | . . . . Reused . | . . . . Traps Extracted . | . . . . Installed . | . . . . Triggered . | . . . . Machines | -11 -10 -9 -9 ---------- Run | Yrd Mat Mat Min Machines Disabled . | . . . . Max in Single Turn . | . . . . Machines Repaired . | . . . . Machines Dismantled . | . . . . Machines Sabotaged . | . . . . Overloaded Fab Kills . | . . . . Hacking | -11 -10 -9 -9 --------- Run | Yrd Mat Mat Min Machines Accessed 8 | . 5 3 . Terminals 7 | . 5 2 . Fabricators . | . . . . Repair Stations . | . . . . Recycling Units 1 | . . 1 . Scanalyzers . | . . . . Garrison Access . | . . . . Total Hacks 18 | . 13 5 . Successful 10 | . 8 2 . Failed 8 | . 5 3 . Catastrophic 2 | . . 2 . Database Lockouts . | . . . . Manual 21 | . 17 4 . Terminals 17 | . 13 4 . Fabricators . | . . . . Repair Stations . | . . . . Recycling Units 1 | . . 1 . Scanalyzers . | . . . . Garrison Access . | . . . . Terminal Hacks 1 | . 1 . . Level Access Points 1 | . 1 . . Fabricator Hacks . | . . . . Repair Station Hacks . | . . . . Recycling Unit Hacks 1 | . . 1 . Retrieve Components 1 | . . 1 . Scanalyzer . | . . . . Garrison Access Hacks . | . . . . Unauthorized Hacks 8 | . 7 1 . Terminals 8 | . 7 1 . Botnet 6 | . 5 1 . Disrupt 2 | . 2 . . Fabricators . | . . . . Repair Stations . | . . . . Recycling Units . | . . . . Scanalyzers . | . . . . Garrison Access . | . . . . Data Cores Recovered . | . . . . Used . | . . . . Hacking Detections 6 | . 4 2 . Full Trace Events . | . . . . Feedback Events . | . . . . Feedback Blocked . | . . . . Robot Schematics Acquired . | . . . . Robots Built . | . . . . Authchips . | . . . . Time . | . . . . Total Robot Build Rating . | . . . . Part Schematics Acquired . | . . . . Parts Built . | . . . . Authchips . | . . . . Time . | . . . . Total Part Build Rating . | . . . . Parts Repaired . | . . . . Time . | . . . . Parts Recycled . | . . . . Recycled Matter . | . . . . Retrieved Matter . | . . . . Retrieved Components 3 | . . 3 . Parts Scanalyzed . | . . . . Part Schematics Acquired . | . . . . Parts Damaged . | . . . . Bothacking | -11 -10 -9 -9 ------------ Run | Yrd Mat Mat Min Used RIF Installer . | . . . . Robots Hacked . | . . . . Non-combat . | . . . . Combat . | . . . . Robot Hacks Applied . | . . . . Relay Couplers Released . | . . . . Fabnet Peak Effective % . | . . . . Robots Rewired . | . . . . Allies Hacked . | . . . . Hacks Repelled . | . . . . Allies | -11 -10 -9 -9 -------- Run | Yrd Mat Mat Min Total Allies . | . . . . Largest Group . | . . . . Highest-Rated Group . | . . . . Highest-Rated Ally . | . . . . Total Orders . | . . . . Ally Attacks . | . . . . Total Damage . | . . . . Kills . | . . . . Allies Corrupted . | . . . . Allies Melted . | . . . . Intel | -11 -10 -9 -9 ------- Run | Yrd Mat Mat Min Robot Analysis Total . | . . . . Derelict Logs Recovered . | . . . . Drone Launches . | . . . . Drone Recoveries . | . . . . Exploration | -11 -10 -9 -9 ------------- Run | Yrd Mat Mat Min Turns Passed 481 | 29 130 218 104 Spaces Moved 502 | 29 202 133 138 Core 394 | 20 202 34 138 Treads 108 | 9 . 99 . Legs . | . . . . Wheels . | . . . . Hover . | . . . . Flight . | . . . . Fastest Speed 50 | 50 50 50 50 Average Speed 77 | 84 50 131 62 Slowest Speed 160 | 160 50 160 100 Overloaded Moves . | . . . . Propulsion Burnouts . | . . . . Robots Hopped . | . . . . Cave-ins Triggered . | . . . . Exploration Rate (%) 22 | 2 29 20 38 Regions Visited 3 Branch Regions 1 Pre-discovered Areas . | . . . . Known Exits Taken 1 | . 1 . . Unknown Exits Taken 2 | 1 . 1 . Scrap Searched 1 | . . . 1 Spaces Dug . | . . . . Terrain Destroyed 6 | . . 6 . Melee . | . . . . Projectile . | . . . . AOE 6 | . . 6 . Terrain Rammed . | . . . . Walls Destroyed . | . . . . Machines Disabled . | . . . . Actions | -11 -10 -9 -9 --------- Run | Yrd Mat Mat Min Total 579 | 32 230 163 154 Wait 45 | . 26 6 13 Move 499 | 28 201 132 138 Hop . | . . . . Pick Up 6 | 2 3 1 . Fast Attach 3 | 2 . . 1 Attach 8 | . . 6 2 Detach 6 | . . 6 . Swap . | . . . . Drop 1 | . . 1 . Fire 3 | . . 3 . Melee 8 | . . 8 . Ram . | . . . . Kick . | . . . . Crush . | . . . . Escape Stasis . | . . . . Rewire . | . . . . Trap . | . . . . Miscellaneous . | . . . . Route ------- -11/Scrapyard -10/Materials (discovered 3 exits: *Mat x3) -9/Materials -9/Mines History --------- Turn | Location | Event 13 | -11/Scrapyard | Discovered new exit (range 15) 30 | -11/Scrapyard | Entered Materials 96 | -10/Materials | Identified exit to Materials 160 | -10/Materials | Entered another Materials area 160 | -9/Materials | Evolved 2 slots: Utility x2 301 | -9/Materials | Build established: Mutant 371 | -9/Materials | Discovered new exit (range 9) 378 | -9/Materials | Entered Mines 386 | -9/Mines | Joined a pair of Derelicts in attacking an 0b10 outpost 431 | -9/Mines | Assembled infested the area 482 | -9/Mines | Self-destructed Last Messages --------------- 00372_ U-05 Engineer lays Concrete. 00377_ U-05 Engineer works on Material Processor. LOCATION=UNKNOWN GOAL=ESCAPE 00380_ Lgt. Treads destroyed. 00386_ A derelict emerges from the shadows: "We've had our eye on this brand new outpost for a little while, just waiting for an opportunity to strike. Need some help?" 00392_ SI-8WV(g) suffers critical hit (Burn). 00394_ SI-8WV(g) destroyed. 00409_ Searching scrap... 00409_ Found Seismic Detector. 00409_ Found Lgt. EM Pulse Cannon. 00409_ Found Beam Rifle. 00409_ Found 58 Matter. 00410_ Acquired Seismic Detector. 00431_ ALERT: Infestation in the mines, dispatching Demolisher response squad. 00478_ K-01 Serf collects debris. 00480_ Grenade Launcher destroyed. Map ----- +----------------------------------------------------+ | ???????????????????????????????????????????? | | ???????????????????????????????????????????? | | ???????????????????????????????????????????? | | ???????????????????????????????????????????? | | ???????????????????????????????????????????? | | ?????????????????????????????????????####### | | ?????????????????????????????????????# | | ??????????#??????????????????????????# | | ?????????? ??????????????????????????# | | ?????????? ??????????????????????????# | | ??????????# ?????????????????????????# | | ??????????# ??????????? ?????????????#### # | | ??????????# ?????????? ??????????????# # | | ??????????# ??????????a ??????????????# # | | ?????????? ?????????# #??????????????# # | | ?????????? ????????# a##?????????????# # | | ??????????# ???????? #?????????????# | | ?????????##%###?????a #????????????## | | ????????## "* ##???? a #????????????# | | ????????# %! ##??? ?????????????# | | ????????# = #?## a a ??????????###?## | | ?????????# #?# aa ??????????##!!## | | ?????????## ##?# #???????????#"[! # # | | ??????????## #??# #????????????# +! ## | | ???????????# ###aa#????????????# + ## | | ??????????## @ ##???????????#"!! # # | | ????####### ## #????##!!## | | ????# #?????#### | | ????# ##????????# | | ????# #### ####?????????# | | ????# #??## ##????????????## | | ????# #???## #### ##??????????????# | | ????# #????####??#k ##???????????????# | | ????# #??????????# #????????????????## | | ????# #??????????# #?????????????????## | | ????# #?????????## #?????????????????## | | ????# #?????????# ##???????########### | | ????# ######????# ##????????# | | ????# ##???# #???#####?# ######## | | ????# ##### [#??## ### #??????## | | ????# # ]%#### ## ####????### | | ????## ## ### #???????# | | ?????#### ### #?# """ ##### #???????? | | ????????## #?# #?###### """ #????#???????? | | ?????????# ### #??????# """ #????????????? | | ?????????# #??????# ##????????????? | | ?????????#######????? ##?????????????? | | ???????????????????? ##??????????????? | | ????????????????????### ##???????????????? | | ??????????????????????#####????????????????? | +----------------------------------------------------+ Best States ------------- Heat Dissipation 28 Energy Generation 5 Energy Capacity 100 Matter Stores 295 Matter Capacity 300 Sight Range 16 Terrain Scan Density 10 Evasion (%) 50 Recoil Reduction 2 Item Schematics ----------------- None Robot Schematics ------------------ None Fabricated ------------ Nothing Alien Tech Used ----------------- None Achievements -------------- None Challenges ------------ None Game ------ Seed GrenadeAntimatterLog Manual? 0 Play Time 00:08:15 Cumulative 40.5 hours Start 2024.09.07 @ 16:05:26 End 2024.09.07 @ 16:12:30 Sessions 1 Manual Loads 0 Difficulty Rogue Special Mode None Game No. 58 Rogue 58 Adventurer 0 Explorer 0 Win Type - Total 1 Types 1/0/0/0/0/0/0/0/0 Lore% 16 Gallery% 34 Achievement% 32 Wizard Run 0 Options --------- Layout 0 ASCII 0 Keyboard 0 Movement Numpad Keybinds 0 Fullscreen 1 Font 18/Cog Map View 76x50 Zoom Use 0% Tactical HUD 1 Map Filters NONE Filters NONE Steam 1 RUN: b0326145-74e7-423a-b742-2cdc1c413911